[Event "Early-Titled-Tuesday-Blitz-June-18-2024"]
[Site "Chess.com"]
[Date "2024.06.18"]
[Round "9"]
[White "A4RookA3"]
[Black "NigiriSushies"]
[Result "1-0"]
[WhiteElo "2436"]
[BlackElo "2306"]
[TimeControl "180+1"]
[EndTime "9:49:18 PDT"]
[Termination "A4RookA3 won by checkmate"]

1. d4 {[%clk 0:02:53]} 1... Nf6 {[%clk 0:02:59.1]} 2. Nc3 {[%clk 0:02:52.9]}
2... d5 {[%clk 0:02:55.2]} 3. Bf4 {[%clk 0:02:52.1]} 3... e6 {[%clk 0:02:40.4]}
4. Nb5 {[%clk 0:02:45.6]} 4... Na6 {[%clk 0:02:39.1]} 5. e3 {[%clk 0:02:43.9]}
5... c6 {[%clk 0:02:33.4]} 6. Nc3 {[%clk 0:02:42.7]} 6... Be7 {[%clk 0:02:33.1]}
7. Nf3 {[%clk 0:02:40.7]} 7... O-O {[%clk 0:02:32.8]} 8. Bd3 {[%clk 0:02:34.8]}
8... Nb4 {[%clk 0:02:25.6]} 9. Be2 {[%clk 0:02:29.9]} 9... a5 {[%clk 0:02:25.7]}
10. a3 {[%clk 0:02:28.4]} 10... Na6 {[%clk 0:02:25.2]} 11. Bd3 {[%clk
0:02:29.3]} 11... b5 {[%clk 0:02:25.1]} 12. Ne5 {[%clk 0:02:22.7]} 12... Qb6
{[%clk 0:02:15.5]} 13. Qf3 {[%clk 0:02:12.2]} 13... b4 {[%clk 0:02:03.6]} 14.
Na4 {[%clk 0:01:57.6]} 14... Qb7 {[%clk 0:01:57]} 15. Qh3 {[%clk 0:01:54.7]}
15... bxa3 {[%clk 0:01:53.5]} 16. bxa3 {[%clk 0:01:51.5]} 16... c5 {[%clk
0:01:41.2]} 17. dxc5 {[%clk 0:01:43.2]} 17... Nxc5 {[%clk 0:00:52.2]} 18. Nxc5
{[%clk 0:01:42.4]} 18... Qb2 {[%clk 0:00:52]} 19. O-O {[%clk 0:01:18.6]} 19...
Bxc5 {[%clk 0:00:50]} 20. Rab1 {[%clk 0:01:03.2]} 20... Qxa3 {[%clk 0:00:43]}
21. Ng4 {[%clk 0:01:01.9]} 21... Ne4 {[%clk 0:00:37.5]} 22. f3 {[%clk 0:00:36]}
22... Ba6 {[%clk 0:00:33.2]} 23. fxe4 {[%clk 0:00:32.2]} 23... Bxd3 {[%clk
0:00:32.4]} 24. cxd3 {[%clk 0:00:31]} 24... Qxd3 {[%clk 0:00:33.3]} 25. exd5
{[%clk 0:00:22.4]} 25... exd5 {[%clk 0:00:29.1]} 26. Rbd1 {[%clk 0:00:20.6]}
26... Qe4 {[%clk 0:00:25.2]} 27. Qg3 {[%clk 0:00:15.4]} 27... Ra6 {[%clk
0:00:25]} 28. Be5 {[%clk 0:00:08.6]} 28... Rg6 {[%clk 0:00:21.4]} 29. Rf4 {[%clk
0:00:07.1]} 29... Rxg4 {[%clk 0:00:14]} 30. Rxg4 {[%clk 0:00:04.2]} 30... Qxe3+
{[%clk 0:00:08.9]} 31. Qxe3 {[%clk 0:00:03.7]} 31... Bxe3+ {[%clk 0:00:09.8]}
32. Kh1 {[%clk 0:00:03.3]} 32... f6 {[%clk 0:00:07.8]} 33. Bd4 {[%clk
0:00:03.2]} 33... Bh6 {[%clk 0:00:03.5]} 34. Bc5 {[%clk 0:00:02.3]} 34... Rd8
{[%clk 0:00:03.4]} 35. Rgd4 {[%clk 0:00:02]} 35... a4 {[%clk 0:00:02.1]} 36.
Rxd5 {[%clk 0:00:02.4]} 36... Re8 {[%clk 0:00:01.4]} 37. Rd8 {[%clk 0:00:01.9]}
37... Rxd8 {[%clk 0:00:02]} 38. Rxd8+ {[%clk 0:00:02.8]} 38... Kf7 {[%clk
0:00:02.7]} 39. Ra8 {[%clk 0:00:03.6]} 39... Bd2 {[%clk 0:00:02.8]} 40. Rxa4
{[%clk 0:00:02.5]} 40... Kg6 {[%clk 0:00:03.3]} 41. Ra7 {[%clk 0:00:03.4]} 41...
h5 {[%clk 0:00:02.2]} 42. Bg1 {[%clk 0:00:04.2]} 42... Bh6 {[%clk 0:00:02.3]}
43. h3 {[%clk 0:00:05.1]} 43... h4 {[%clk 0:00:02.7]} 44. Ra6 {[%clk 0:00:06]}
44... Kh5 {[%clk 0:00:02.8]} 45. Bf2 {[%clk 0:00:06.3]} 45... f5 {[%clk
0:00:02.1]} 46. Ra4 {[%clk 0:00:06.8]} 46... g5 {[%clk 0:00:02.1]} 47. Kg1
{[%clk 0:00:07.4]} 47... Bg7 {[%clk 0:00:02]} 48. Ra5 {[%clk 0:00:07.2]} 48...
Kg6 {[%clk 0:00:02.1]} 49. Rb5 {[%clk 0:00:07.5]} 49... Bf6 {[%clk 0:00:01.6]}
50. Rb6 {[%clk 0:00:07.1]} 50... Kg7 {[%clk 0:00:01.9]} 51. Kf1 {[%clk
0:00:04.9]} 51... g4 {[%clk 0:00:02.2]} 52. hxg4 {[%clk 0:00:04.8]} 52... fxg4
{[%clk 0:00:03.1]} 53. Rb4 {[%clk 0:00:05.1]} 53... g3 {[%clk 0:00:02.6]} 54.
Be3 {[%clk 0:00:02.3]} 54... Kg6 {[%clk 0:00:03.1]} 55. Rg4+ {[%clk 0:00:01.5]}
55... Kf5 {[%clk 0:00:02]} 56. Rf4+ {[%clk 0:00:02.4]} 56... Kg6 {[%clk
0:00:01.9]} 57. Ke2 {[%clk 0:00:02.5]} 57... Kg7 {[%clk 0:00:01.7]} 58. Kf3
{[%clk 0:00:03]} 58... Kg6 {[%clk 0:00:02.1]} 59. Rg4+ {[%clk 0:00:03.9]} 59...
Kh5 {[%clk 0:00:02.3]} 60. Rg8 {[%clk 0:00:03.3]} 60... Be5 {[%clk 0:00:01.5]}
61. Rg5+ {[%clk 0:00:02.7]} 61... Kh6 {[%clk 0:00:01]} 62. Rxe5+ {[%clk
0:00:03.6]} 62... Kh7 {[%clk 0:00:01.8]} 63. Kg4 {[%clk 0:00:04.1]} 63... Kg6
{[%clk 0:00:01.7]} 64. Kh3 {[%clk 0:00:05]} 64... Kh7 {[%clk 0:00:02.6]} 65. Re4
{[%clk 0:00:05.5]} 65... Kg6 {[%clk 0:00:03.5]} 66. Rxh4 {[%clk 0:00:06.4]}
66... Kf6 {[%clk 0:00:04.4]} 67. Rg4 {[%clk 0:00:07.3]} 67... Kf5 {[%clk
0:00:05.3]} 68. Rxg3 {[%clk 0:00:08.2]} 68... Ke4 {[%clk 0:00:06.2]} 69. Rf3
{[%clk 0:00:09.1]} 69... Kd3 {[%clk 0:00:07]} 70. Kg3 {[%clk 0:00:09.5]} 70...
Ke2 {[%clk 0:00:07.9]} 71. Bf4 {[%clk 0:00:09.5]} 71... Ke1 {[%clk 0:00:08.1]}
72. Bd2+ {[%clk 0:00:08.7]} 72... Ke2 {[%clk 0:00:09]} 73. Bc3 {[%clk
0:00:08.1]} 73... Kd1 {[%clk 0:00:09.9]} 74. Kf2 {[%clk 0:00:08.6]} 74... Kc1
{[%clk 0:00:10.8]} 75. g4 {[%clk 0:00:09.3]} 75... Kb1 {[%clk 0:00:11.6]} 76.
Bd2 {[%clk 0:00:10.2]} 76... Ka2 {[%clk 0:00:12.2]} 77. g5 {[%clk 0:00:11.1]}
77... Kb2 {[%clk 0:00:13.1]} 78. Ke3 {[%clk 0:00:11.9]} 78... Kc2 {[%clk
0:00:14]} 79. Bc3 {[%clk 0:00:12.5]} 79... Kd1 {[%clk 0:00:14.9]} 80. Bd4 {[%clk
0:00:13.4]} 80... Kc2 {[%clk 0:00:15.5]} 81. Rf2+ {[%clk 0:00:14.3]} 81... Kc1
{[%clk 0:00:16.4]} 82. Ke4 {[%clk 0:00:14.7]} 82... Kb1 {[%clk 0:00:17.3]} 83.
Ke3 {[%clk 0:00:15.6]} 83... Kc1 {[%clk 0:00:17]} 84. Ke4 {[%clk 0:00:16.5]}
84... Kb1 {[%clk 0:00:17.9]} 85. Kf3 {[%clk 0:00:17.4]} 85... Kc1 {[%clk
0:00:18.7]} 86. Rg2 {[%clk 0:00:18.3]} 86... Kd1 {[%clk 0:00:19.6]} 87. Rf2
{[%clk 0:00:17.4]} 87... Ke1 {[%clk 0:00:20.5]} 88. Kg4 {[%clk 0:00:18.3]} 88...
Kd1 {[%clk 0:00:20.5]} 89. Kh5 {[%clk 0:00:19.2]} 89... Kc1 {[%clk 0:00:21.4]}
90. Kh6 {[%clk 0:00:20.1]} 90... Kb1 {[%clk 0:00:21.9]} 91. Kh7 {[%clk 0:00:21]}
91... Kc1 {[%clk 0:00:22.8]} 92. Kh8 {[%clk 0:00:21.9]} 92... Kd1 {[%clk
0:00:23.3]} 93. Kg8 {[%clk 0:00:22.8]} 93... Kc1 {[%clk 0:00:24.2]} 94. Kf8
{[%clk 0:00:23.7]} 94... Kb1 {[%clk 0:00:25.1]} 95. Ke8 {[%clk 0:00:24.6]} 95...
Kc1 {[%clk 0:00:26]} 96. Kd8 {[%clk 0:00:25.5]} 96... Kd1 {[%clk 0:00:26.4]} 97.
Kc8 {[%clk 0:00:26.4]} 97... Kc1 {[%clk 0:00:27.3]} 98. Kb8 {[%clk 0:00:27.3]}
98... Kb1 {[%clk 0:00:28.2]} 99. Ka8 {[%clk 0:00:23]} 99... Kc1 {[%clk
0:00:29.1]} 100. Ka7 {[%clk 0:00:23.9]} 100... Kb1 {[%clk 0:00:30]} 101. Ka6
{[%clk 0:00:24.8]} 101... Kc1 {[%clk 0:00:30.9]} 102. Ka5 {[%clk 0:00:25.6]}
102... Kb1 {[%clk 0:00:31.8]} 103. Ka4 {[%clk 0:00:26.5]} 103... Kc1 {[%clk
0:00:32.7]} 104. Ka3 {[%clk 0:00:27.3]} 104... Kb1 {[%clk 0:00:33.6]} 105. Kb3
{[%clk 0:00:28.1]} 105... Kc1 {[%clk 0:00:34.5]} 106. Kb4 {[%clk 0:00:29]}
106... Kb1 {[%clk 0:00:35.4]} 107. Kb5 {[%clk 0:00:29.9]} 107... Kc1 {[%clk
0:00:36.3]} 108. Kb6 {[%clk 0:00:30.8]} 108... Kb1 {[%clk 0:00:37.2]} 109. Kb7
{[%clk 0:00:31.2]} 109... Kc1 {[%clk 0:00:38.1]} 110. Kc7 {[%clk 0:00:32.1]}
110... Kb1 {[%clk 0:00:39]} 111. Kc6 {[%clk 0:00:33]} 111... Kc1 {[%clk
0:00:39.9]} 112. Kc5 {[%clk 0:00:33.9]} 112... Kb1 {[%clk 0:00:40.8]} 113. Kc4
{[%clk 0:00:34.8]} 113... Kc1 {[%clk 0:00:41.7]} 114. Kc3 {[%clk 0:00:35.6]}
114... Kb1 {[%clk 0:00:42.6]} 115. Kd3 {[%clk 0:00:36.5]} 115... Kc1 {[%clk
0:00:43.5]} 116. Kc4 {[%clk 0:00:36.4]} 116... Kb1 {[%clk 0:00:44.4]} 117. Kd5
{[%clk 0:00:37.3]} 117... Kc1 {[%clk 0:00:45.3]} 118. Kd6 {[%clk 0:00:37.9]}
118... Kb1 {[%clk 0:00:41.5]} 119. Kd7 {[%clk 0:00:38.8]} 119... Kc1 {[%clk
0:00:42.4]} 120. g6 {[%clk 0:00:38.5]} 120... Kb1 {[%clk 0:00:43.3]} 121. Ke6
{[%clk 0:00:38.1]} 121... Kc1 {[%clk 0:00:44.2]} 122. Kf5 {[%clk 0:00:38.9]}
122... Kb1 {[%clk 0:00:45.1]} 123. Kg4 {[%clk 0:00:39.8]} 123... Kc1 {[%clk
0:00:46]} 124. Kh3 {[%clk 0:00:40.7]} 124... Kb1 {[%clk 0:00:46.9]} 125. Kh4
{[%clk 0:00:41.5]} 125... Kc1 {[%clk 0:00:47.8]} 126. Kh5 {[%clk 0:00:42.4]}
126... Kb1 {[%clk 0:00:48.7]} 127. Kh6 {[%clk 0:00:43.3]} 127... Kc1 {[%clk
0:00:49.6]} 128. Kh7 {[%clk 0:00:44.2]} 128... Kb1 {[%clk 0:00:50.5]} 129. Kh8
{[%clk 0:00:45.1]} 129... Kc1 {[%clk 0:00:51.4]} 130. Kg7 {[%clk 0:00:46]}
130... Kb1 {[%clk 0:00:52.3]} 131. Kg8 {[%clk 0:00:46.9]} 131... Kc1 {[%clk
0:00:53.2]} 132. Kf8 {[%clk 0:00:47.8]} 132... Kb1 {[%clk 0:00:54.1]} 133. Ke8
{[%clk 0:00:48.7]} 133... Kc1 {[%clk 0:00:55]} 134. Kd8 {[%clk 0:00:49.6]}
134... Kb1 {[%clk 0:00:55.9]} 135. Kc8 {[%clk 0:00:50.5]} 135... Kc1 {[%clk
0:00:56.8]} 136. Kb8 {[%clk 0:00:51.4]} 136... Kb1 {[%clk 0:00:57.7]} 137. Ka8
{[%clk 0:00:52.3]} 137... Kc1 {[%clk 0:00:58.6]} 138. Ka7 {[%clk 0:00:53.2]}
138... Kb1 {[%clk 0:00:59.5]} 139. Ka6 {[%clk 0:00:54.1]} 139... Kc1 {[%clk
0:01:00.4]} 140. Ka5 {[%clk 0:00:55]} 140... Kb1 {[%clk 0:01:01.3]} 141. Ka4
{[%clk 0:00:55.9]} 141... Kc1 {[%clk 0:01:02.2]} 142. Ka3 {[%clk 0:00:56.8]}
142... Kb1 {[%clk 0:01:03.1]} 143. Kb3 {[%clk 0:00:57.7]} 143... Kc1 {[%clk
0:01:04]} 144. Kb4 {[%clk 0:00:58.6]} 144... Kb1 {[%clk 0:01:04.9]} 145. Kb5
{[%clk 0:00:59.5]} 145... Kc1 {[%clk 0:01:05.8]} 146. Kb6 {[%clk 0:01:00.4]}
146... Kb1 {[%clk 0:01:06.7]} 147. Kb7 {[%clk 0:01:01.3]} 147... Kc1 {[%clk
0:01:07.6]} 148. Kb8 {[%clk 0:01:02.2]} 148... Kb1 {[%clk 0:01:08.5]} 149. Kc8
{[%clk 0:01:03.1]} 149... Kc1 {[%clk 0:01:09.4]} 150. Kc7 {[%clk 0:01:04]}
150... Kb1 {[%clk 0:01:10.3]} 151. Kc6 {[%clk 0:01:04.9]} 151... Kc1 {[%clk
0:01:11.2]} 152. Kc5 {[%clk 0:01:05.8]} 152... Kb1 {[%clk 0:01:12.1]} 153. Kc4
{[%clk 0:01:06.7]} 153... Kc1 {[%clk 0:01:13]} 154. Kc3 {[%clk 0:01:07.6]}
154... Kb1 {[%clk 0:01:13.9]} 155. Kd3 {[%clk 0:01:08.5]} 155... Kc1 {[%clk
0:01:14.8]} 156. Ke3 {[%clk 0:01:09.4]} 156... Kb1 {[%clk 0:01:15.7]} 157. Ke4
{[%clk 0:01:10.3]} 157... Kc1 {[%clk 0:01:16.6]} 158. Kf4 {[%clk 0:01:11.2]}
158... Kb1 {[%clk 0:01:17.5]} 159. Kf3 {[%clk 0:01:12.1]} 159... Kc1 {[%clk
0:01:18.4]} 160. Kg3 {[%clk 0:01:13]} 160... Kb1 {[%clk 0:01:17.1]} 161. Kh3
{[%clk 0:01:08.8]} 161... Kc1 {[%clk 0:01:18]} 162. Kg4 {[%clk 0:01:09.7]}
162... Kb1 {[%clk 0:01:18.9]} 163. Kh4 {[%clk 0:01:10.6]} 163... Kc1 {[%clk
0:01:19.8]} 164. Kg5 {[%clk 0:01:11.5]} 164... Kb1 {[%clk 0:01:20.7]} 165. Kh5
{[%clk 0:01:12.2]} 165... Kc1 {[%clk 0:01:21.6]} 166. Kh6 {[%clk 0:01:13]}
166... Kb1 {[%clk 0:01:22.5]} 167. Kh7 {[%clk 0:01:13.9]} 167... Kc1 {[%clk
0:01:23.4]} 168. Kh8 {[%clk 0:01:14.8]} 168... Kb1 {[%clk 0:01:24.3]} 169. g7
{[%clk 0:01:15.7]} 169... Kc1 {[%clk 0:01:25.2]} 170. Kh7 {[%clk 0:01:16.5]}
170... Kb1 {[%clk 0:01:26.1]} 171. Kh6 {[%clk 0:01:17.4]} 171... Kc1 {[%clk
0:01:27]} 172. Kh5 {[%clk 0:01:18.2]} 172... Kb1 {[%clk 0:01:27.9]} 173. Kh4
{[%clk 0:01:18.9]} 173... Kc1 {[%clk 0:01:28.8]} 174. Kh3 {[%clk 0:01:19.8]}
174... Kb1 {[%clk 0:01:29.7]} 175. Kh2 {[%clk 0:01:20.3]} 175... Kc1 {[%clk
0:01:30.6]} 176. Kg2 {[%clk 0:01:21.2]} 176... Kb1 {[%clk 0:01:31.5]} 177. Kg3
{[%clk 0:01:22.1]} 177... Kc1 {[%clk 0:01:32.4]} 178. Kf3 {[%clk 0:01:23]}
178... Kb1 {[%clk 0:01:33.3]} 179. Ke3 {[%clk 0:01:23.9]} 179... Kc1 {[%clk
0:01:34.2]} 180. Kd3 {[%clk 0:01:24.4]} 180... Kb1 {[%clk 0:01:35.1]} 181. Kc3
{[%clk 0:01:25.3]} 181... Kc1 {[%clk 0:01:36]} 182. Kb3 {[%clk 0:01:26.1]}
182... Kb1 {[%clk 0:01:36.9]} 183. Ka3 {[%clk 0:01:27]} 183... Kc1 {[%clk
0:01:37.8]} 184. Ka4 {[%clk 0:01:27.9]} 184... Kb1 {[%clk 0:01:38.7]} 185. Kb4
{[%clk 0:01:28.8]} 185... Kc1 {[%clk 0:01:39.6]} 186. Kc4 {[%clk 0:01:29.7]}
186... Kb1 {[%clk 0:01:40.5]} 187. Kc5 {[%clk 0:01:30.6]} 187... Kc1 {[%clk
0:01:41.4]} 188. Kb5 {[%clk 0:01:31.5]} 188... Kb1 {[%clk 0:01:42.3]} 189. Ka5
{[%clk 0:01:32.4]} 189... Kc1 {[%clk 0:01:43.2]} 190. Ka6 {[%clk 0:01:33.3]}
190... Kb1 {[%clk 0:01:44.1]} 191. Kb6 {[%clk 0:01:34.2]} 191... Kc1 {[%clk
0:01:45]} 192. Kc6 {[%clk 0:01:35.1]} 192... Kb1 {[%clk 0:01:45.9]} 193. Kd5
{[%clk 0:01:36]} 193... Kc1 {[%clk 0:01:46.8]} 194. Ke4 {[%clk 0:01:36.9]}
194... Kb1 {[%clk 0:01:47.7]} 195. Ke5 {[%clk 0:01:37.8]} 195... Kc1 {[%clk
0:01:48.6]} 196. g8=R {[%clk 0:01:37.4]} 196... Kb1 {[%clk 0:01:49.5]} 197. Rg1#
{[%clk 0:01:38]} 1-0